[Event "Caplin Hastings Masters 2023-24"]
[Site "Hastings"]
[Date "2023.12.29"]
[Round "2.31"]
[White "Binks, Michael"]
[Black "Patel, Zain"]
[Result "1/2-1/2"]
[ECO "D02"]
[WhiteElo "2035"]
[BlackElo "1841"]
[Annotator "NA"]
[PlyCount "125"]
[EventDate "2023.12.18"]
[EventType "swiss"]
[EventCountry "ENG"]
[SourceTitle "playchess.com"]
[Source "ChessBase"]
[SourceQuality "1"]
[TimeControl "40/6000+30:3000+30"]

1. d4 {[%emt 0:00:11]} Nf6 {[%emt 0:00:20]} 2. Nf3 {[%emt 0:00:07]} e6 {[%emt 0:00:18]} 3. Bf4 {[%emt 0:00:14]} d5 {[%emt 0:00:40]} 4. e3 {[%emt 0:00:12]} c5 {[%emt 0:00:55]} 5. c3 {[%emt 0:00:53]} Bd6 {[%emt 0:00:05]} 6. Bg3 {[%emt 0:00:55]} Qc7 {[%emt 0:00:31]} 7. Nbd2 {[%emt 0:00:43]} Nbd7 {[%emt 0:01:01]} 8. Bd3 {[%emt 0:05:26]} O-O {[%emt 0:00:43]} 9. O-O {[%emt 0:11:24]} Bxg3 {[%emt 0:03:30]} 10. hxg3 {[%emt 0:00:39]} e5 {[%emt 0:00:54]} 11. dxe5 {[%emt 0:01:17]} Nxe5 {[%emt 0:00:41]} 12. Nxe5 {[%emt 0:01:11]} Qxe5 {[%emt 0:00:11]} 13. Re1 {[%emt 0:15:32]} Ne4 {[%emt 0:17:33]} 14. f4 {[%emt 0:12:25]} Qe7 {[%emt 0:09:45]} 15. Bxe4 {[%emt 0:08:06]} dxe4 {[%emt 0:00:10]} 16. Qc2 {[%emt 0:00:12]} Re8 {[%emt 0:04:39]} 17. Nf1 {[%emt 0:17:20]} Rd8 {[%emt 0:14:57]} 18. Rad1 {[%emt 0:01:22]} Bf5 {[%emt 0:06:47]} 19. Rxd8+ {[%emt 0:01:16]} Rxd8 {[%emt 0:00:48]} 20. Rd1 {[%emt 0:00:58]} Rd3 {[%emt 0:02:53]} 21. c4 {[%emt 0:05:19]} h5 {[%emt 0:14:23]} 22. Kf2 {[%emt 0:04:47]} Qf6 {[%emt 0:07:38]} 23. Rxd3 {[%emt 0:06:47]} exd3 {[%emt 0:00:07]} 24. Qb3 {[%emt 0:00:23]} Qc6 {[%emt 0:04:45]} 25. Nd2 {[%emt 0:06:56]} a6 {[%emt 0:03:04]} 26. Qc3 {[%emt 0:00:43]} Qa4 {[%emt 0:01:15]} 27. e4 {[%emt 0:01:04]} Bg4 {[%emt 0:01:27]} 28. b3 {[%emt 0:00:59]} Qd7 {[%emt 0:01:49]} 29. Qe5 {[%emt 0:05:29]} b6 {[%emt 0:02:01]} 30. Qd5 {[%emt 0:00:07]} Qxd5 {[%emt 0:04:11]} 31. exd5 {[%emt 0:00:12]} Kf8 {[%emt 0:00:40]} 32. Nf3 {[%emt 0:00:32]} a5 {[%emt 0:01:31]} 33. Ke3 {[%emt 0:00:20]} Bf5 {[%emt 0:00:14]} 34. Ne5 {[%emt 0:00:44]} Be4 {[%emt 0:01:29]} 35. Nd7+ {[%emt 0:00:21]} Ke7 {[%emt 0:00:27]} 36. Nxb6 {[%emt 0:00:05]} f6 {[%emt 0:02:04]} 37. Na4 {[%emt 0:00:22]} d2 {[%emt 0:00:40]} 38. Kxd2 {[%emt 0:00:24]} Kd6 {[%emt 0:00:04]} 39. Nc3 {[%emt 0:00:42]} Bxg2 {[%emt 0:00:04]} 40. Ke3 {[%emt 0:00:17]} f5 {[%emt 0:02:13]} 41. a3 {[%emt 0:53:19]} Bf1 {[%emt 0:51:10]} 42. a4 {[%emt 0:00:00]} Bh3 {[%emt 0:00:00]} 43. Nb5+ {[%emt 0:00:00]} Kd7 {[%emt 0:00:00]} 44. Na7 {[%emt 0:00:00]} Kc7 {[%emt 0:00:00]} 45. Nc6 {[%emt 0:00:00]} Kb6 {[%emt 0:00:00]} 46. Nd8 {[%emt 0:00:00]} Bg4 {[%emt 0:00:00]} 47. Kd2 {[%emt 0:00:00]} Kc7 {[%emt 0:00:00]} 48. Ne6+ {[%emt 0:00:00]} Kd6 {[%emt 0:00:00]} 49. Nxg7 {[%emt 0:00:00]} Kc7 {[%emt 0:00:00]} 50. Ne6+ {[%emt 0:00:00]} Kd6 {[%emt 0:00:00]} 51. Nd8 {[%emt 0:00:00]} Kc7 {[%emt 0:00:00]} 52. Nf7 {[%emt 0:00:00]} Bh3 {[%emt 0:00:00]} 53. Ne5 {[%emt 0:00:00]} Bg2 {[%emt 0:00:00]} 54. Nc6 {[%emt 0:00:00]} Kb6 {[%emt 0:00:00]} 55. Ne7 {[%emt 0:00:00]} Be4 {[%emt 0:00:00]} 56. d6 {[%emt 0:00:00]} Kb7 {[%emt 0:00:00]} 57. Kc3 {[%emt 0:00:00]} Kb6 {[%emt 0:00:00]} 58. Kd2 {[%emt 0:00:00]} Kb7 {[%emt 0:00:00]} 59. Nd5 {[%emt 0:00:00]} Kc6 {[%emt 0:00:00]} 60. d7 {[%emt 0:00:00]} Kxd7 {[%emt 0:00:00]} 61. Nf6+ {[%emt 0:00:00]} Ke6 {[%emt 0:00:00]} 62. Nxh5 {[%emt 0:00:00]} Kf7 {[%emt 0:00:00]} 63. g4 {[%emt 0:00:00]} 1/2-1/2

[Event "Caplin Hastings Masters 2023-24"]
[Site "Hastings"]
[Date "2023.12.29"]
[Round "2.32"]
[White "Ruane, Brendan J"]
[Black "Liu, Tianyi"]
[Result "0-1"]
[ECO "E60"]
[WhiteElo "1823"]
[BlackElo "2022"]
[Annotator "NA"]
[PlyCount "98"]
[EventDate "2023.12.18"]
[EventType "swiss"]
[EventCountry "ENG"]
[SourceTitle "playchess.com"]
[Source "ChessBase"]
[SourceQuality "1"]
[TimeControl "40/6000+30:3000+30"]

1. d4 {[%emt 0:00:09]} Nf6 {[%emt 0:00:05]} 2. c4 {[%emt 0:00:06]} g6 {[%emt 0:00:04]} 3. h4 {[%emt 0:00:23]} Bg7 {[%emt 0:03:41]} 4. Nc3 {[%emt 0:00:10]} d6 {[%emt 0:03:24]} 5. e4 {[%emt 0:00:33]} c5 {[%emt 0:03:44]} 6. d5 {[%emt 0:00:44]} e6 {[%emt 0:00:25]} 7. Be2 {[%emt 0:07:17]} exd5 {[%emt 0:00:27]} 8. exd5 {[%emt 0:00:20]} O-O {[%emt 0:19:26]} 9. h5 {[%emt 0:00:28]} Re8 {[%emt 0:00:56]} 10. hxg6 {[%emt 0:05:01]} fxg6 {[%emt 0:01:32]} 11. Bg5 {[%emt 0:02:30]} Bf5 {[%emt 0:08:47]} 12. Qd2 {[%emt 0:07:18]} Nbd7 {[%emt 0:01:26]} 13. O-O-O {[%emt 0:03:37]} Qa5 {[%emt 0:04:56]} 14. f3 {[%emt 0:17:05]} Ne5 {[%emt 0:37:20]} 15. Qf4 {[%emt 0:13:51]} Nh5 {[%emt 0:08:11]} 16. Rxh5 {[%emt 0:00:27]} gxh5 {[%emt 0:00:20]} 17. Qxf5 {[%emt 0:00:14]} Ng6 {[%emt 0:00:24]} 18. Qc2 {[%emt 0:01:37]} a6 {[%emt 0:04:06]} 19. Kb1 {[%emt 0:06:27]} Rab8 {[%emt 0:01:56]} 20. Ne4 {[%emt 0:01:08]} b5 {[%emt 0:00:54]} 21. Nf6+ {[%emt 0:00:42]} Bxf6 {[%emt 0:00:10]} 22. Bxf6 {[%emt 0:00:07]} bxc4 {[%emt 0:00:10]} 23. Bxc4 {[%emt 0:03:42]} Re1 {[%emt 0:01:00]} 24. Ne2 {[%emt 0:14:13]} Rxd1+ {[%emt 0:01:14]} 25. Qxd1 {[%emt 0:00:07]} Qb4 {[%emt 0:00:14]} 26. Qc1 {[%emt 0:01:41]} Kf7 {[%emt 0:00:56]} 27. Qc3 {[%emt 0:00:28]} Qa4 {[%emt 0:00:32]} 28. b3 {[%emt 0:04:40]} Qd7 {[%emt 0:00:41]} 29. Ng3 {[%emt 0:01:21]} Re8 {[%emt 0:00:06]} 30. Ne4 {[%emt 0:01:46]} Qf5 {[%emt 0:01:11]} 31. g4 {[%emt 0:02:19]} hxg4 {[%emt 0:00:37]} 32. Bd3 {[%emt 0:00:39]} Rxe4 {[%emt 0:01:47]} 33. Bxe4 {[%emt 0:03:24]} Qxf6 {[%emt 0:00:14]} 34. Qxf6+ {[%emt 0:00:16]} Kxf6 {[%emt 0:00:04]} 35. fxg4 {[%emt 0:01:12]} Ke5 {[%emt 0:00:17]} 36. Bd3 {[%emt 0:00:37]} a5 {[%emt 0:00:07]} 37. Bc4 {[%emt 0:01:20]} h6 {[%emt 0:04:03]} 38. Kb2 {[%emt 0:00:38]} Nf4 {[%emt 0:00:04]} 39. Ka3 {[%emt 0:00:24]} Nxd5 {[%emt 0:00:04]} 40. Ka4 {[%emt 0:04:47]} Nc3+ {[%emt 0:00:12]} 41. Kxa5 {[%emt 0:50:04]} Nxa2 {[%emt 0:50:07]} 42. Kb5 {[%emt 0:00:41]} Nb4 {[%emt 0:01:11]} 43. Bf7 {[%emt 0:00:30]} Nd5 {[%emt 0:01:45]} 44. Kc6 {[%emt 0:01:35]} Nf6 {[%emt 0:00:16]} 45. Bh5 {[%emt 0:00:31]} Nxh5 {[%emt 0:02:56]} 46. gxh5 {[%emt 0:00:05]} d5 {[%emt 0:00:28]} 47. Kxc5 {[%emt 0:00:06]} d4 {[%emt 0:00:12]} 48. Kc4 {[%emt 0:00:15]} Ke4 {[%emt 0:00:05]} 49. b4 {[%emt 0:00:28]} d3 {[%emt 0:00:07]} 0-1

[Event "Caplin Hastings Masters 2023-24"]
[Site "Hastings"]
[Date "2023.12.29"]
[Round "2.33"]
[White "White, Stuart A"]
[Black "Damodaran, Patrick"]
[Result "1-0"]
[ECO "E68"]
[WhiteElo "2014"]
[BlackElo "1798"]
[Annotator "NA"]
[PlyCount "95"]
[EventDate "2023.12.18"]
[EventType "swiss"]
[EventCountry "ENG"]
[SourceTitle "playchess.com"]
[Source "ChessBase"]
[SourceQuality "1"]
[TimeControl "40/6000+30:3000+30"]

1. c4 {[%emt 0:00:01]} Nf6 {[%emt 0:02:39]} 2. g3 {[%emt 0:00:10]} g6 {[%emt 0:02:54]} 3. Bg2 {[%emt 0:00:06]} Bg7 {[%emt 0:02:37]} 4. Nc3 {[%emt 0:00:09]} c6 {[%emt 0:02:31]} 5. e4 {[%emt 0:07:52]} d6 {[%emt 0:02:37]} 6. d4 {[%emt 0:00:41]} e5 {[%emt 0:03:57]} 7. Nf3 {[%emt 0:06:15]} exd4 {[%emt 0:03:16]} 8. Nxd4 {[%emt 0:01:23]} O-O {[%emt 0:02:35]} 9. O-O {[%emt 0:00:37]} Nbd7 {[%emt 0:04:16]} 10. Re1 {[%emt 0:00:33]} Ne5 {[%emt 0:02:08]} 11. b3 {[%emt 0:24:52]} a6 {[%emt 0:08:34]} 12. h3 {[%emt 0:02:16]} c5 {[%emt 0:03:15]} 13. Nc2 {[%emt 0:01:35]} Nc6 {[%emt 0:05:17]} 14. Bb2 {[%emt 0:09:47]} Ne8 {[%emt 0:07:11]} 15. Qd2 {[%emt 0:07:37]} Qa5 {[%emt 0:04:21]} 16. Rad1 {[%emt 0:06:31]} Be6 {[%emt 0:08:48]} 17. Na4 {[%emt 0:07:12]} Qxd2 {[%emt 0:01:56]} 18. Rxd2 {[%emt 0:00:02]} b5 {[%emt 0:01:20]} 19. Bxg7 {[%emt 0:01:05]} Kxg7 {[%emt 0:00:46]} 20. e5 {[%emt 0:01:34]} Nxe5 {[%emt 0:04:32]} 21. Bxa8 {[%emt 0:00:45]} bxa4 {[%emt 0:00:11]} 22. f4 {[%emt 0:01:35]} Nd7 {[%emt 0:03:00]} 23. Bg2 {[%emt 0:02:02]} Nb6 {[%emt 0:01:00]} 24. Ne3 {[%emt 0:01:20]} a5 {[%emt 0:02:44]} 25. g4 {[%emt 0:03:54]} axb3 {[%emt 0:02:42]} 26. axb3 {[%emt 0:00:30]} a4 {[%emt 0:01:22]} 27. bxa4 {[%emt 0:01:37]} Nxa4 {[%emt 0:01:40]} 28. Bc6 {[%emt 0:03:22]} Nb6 {[%emt 0:01:18]} 29. Bb5 {[%emt 0:02:33]} Nc7 {[%emt 0:00:17]} 30. Rxd6 {[%emt 0:00:44]} Nxb5 {[%emt 0:00:30]} 31. cxb5 {[%emt 0:00:55]} Rb8 {[%emt 0:01:14]} 32. f5 {[%emt 0:04:18]} Bb3 {[%emt 0:02:13]} 33. f6+ {[%emt 0:02:02]} Kh6 {[%emt 0:01:16]} 34. h4 {[%emt 0:01:13]} Na4 {[%emt 0:01:17]} 35. Kf2 {[%emt 0:04:22]} Nc3 {[%emt 0:02:20]} 36. g5+ {[%emt 0:02:17]} Kh5 {[%emt 0:00:05]} 37. Ng2 {[%emt 0:00:16]} h6 {[%emt 0:02:15]} 38. Rd3 {[%emt 0:01:22]} hxg5 {[%emt 0:03:05]} 39. Rxc3 {[%emt 0:00:34]} c4 {[%emt 0:00:26]} 40. Re5 {[%emt 0:00:18]} Rd8 {[%emt 0:01:26]} 41. hxg5 {[%emt 0:51:28]} Rd2+ {[%emt 0:50:23]} 42. Kg3 {[%emt 0:00:41]} Rxg2+ {[%emt 0:00:15]} 43. Kxg2 {[%emt 0:00:05]} Ba4 {[%emt 0:00:31]} 44. Kf3 {[%emt 0:00:57]} Bd1+ {[%emt 0:00:22]} 45. Kf4 {[%emt 0:00:20]} Bg4 {[%emt 0:00:27]} 46. Rh3+ {[%emt 0:01:22]} Bxh3 {[%emt 0:00:10]} 47. Re8 {[%emt 0:00:03]} Bg4 {[%emt 0:00:25]} 48. Rh8# {[%emt 0:00:40]} 1-0

[Event "Caplin Hastings Masters 2023-24"]
[Site "Hastings"]
[Date "2023.12.29"]
[Round "2.34"]
[White "Larkin, Benjamin"]
[Black "Hng, Mei-Xian Eunice"]
[Result "0-1"]
[ECO "B04"]
[WhiteElo "1814"]
[BlackElo "2014"]
[Annotator "NA"]
[PlyCount "84"]
[EventDate "2023.12.18"]
[EventType "swiss"]
[EventCountry "ENG"]
[SourceTitle "playchess.com"]
[Source "ChessBase"]
[SourceQuality "1"]
[TimeControl "40/6000+30:3000+30"]

1. e4 {[%emt 0:00:02]} Nf6 {[%emt 0:00:22]} 2. e5 {[%emt 0:00:08]} Nd5 {[%emt 0:00:08]} 3. d4 {[%emt 0:00:04]} d6 {[%emt 0:00:15]} 4. Nf3 {[%emt 0:00:13]} g6 {[%emt 0:00:22]} 5. c4 {[%emt 0:01:41]} Nb6 {[%emt 0:00:11]} 6. exd6 {[%emt 0:02:21]} cxd6 {[%emt 0:00:09]} 7. h3 {[%emt 0:03:00]} Bg7 {[%emt 0:00:34]} 8. Be2 {[%emt 0:01:29]} O-O {[%emt 0:01:35]} 9. O-O {[%emt 0:00:08]} Nc6 {[%emt 0:02:48]} 10. Nc3 {[%emt 0:02:14]} Bf5 {[%emt 0:11:37]} 11. Be3 {[%emt 0:01:18]} d5 {[%emt 0:06:24]} 12. c5 {[%emt 0:00:40]} Nc4 {[%emt 0:00:10]} 13. Bxc4 {[%emt 0:00:56]} dxc4 {[%emt 0:00:05]} 14. Qd2 {[%emt 0:18:32]} Bd3 {[%emt 0:15:05]} 15. Rfd1 {[%emt 0:00:02]} Nxd4 {[%emt 0:10:54]} 16. Ne1 {[%emt 0:02:03]} Qc7 {[%emt 0:12:50]} 17. Nxd3 {[%emt 0:01:58]} cxd3 {[%emt 0:00:05]} 18. Qxd3 {[%emt 0:05:37]} Rfd8 {[%emt 0:04:21]} 19. Nb5 {[%emt 0:05:37]} Nxb5 {[%emt 0:05:47]} 20. Qxb5 {[%emt 0:01:40]} Be5 {[%emt 0:00:20]} 21. Rac1 {[%emt 0:07:20]} Rxd1+ {[%emt 0:01:56]} 22. Rxd1 {[%emt 0:00:03]} Rd8 {[%emt 0:00:06]} 23. Rxd8+ {[%emt 0:06:25]} Qxd8 {[%emt 0:00:05]} 24. g3 {[%emt 0:00:07]} Qb8 {[%emt 0:14:39]} 25. Kg2 {[%emt 0:01:16]} Kg7 {[%emt 0:00:25]} 26. b3 {[%emt 0:05:44]} Qc7 {[%emt 0:00:38]} 27. a4 {[%emt 0:02:03]} a6 {[%emt 0:01:14]} 28. Qe2 {[%emt 0:08:29]} Qc6+ {[%emt 0:03:16]} 29. Qf3 {[%emt 0:00:01]} f5 {[%emt 0:00:49]} 30. b4 {[%emt 0:07:15]} Kf6 {[%emt 0:02:36]} 31. b5 {[%emt 0:03:48]} axb5 {[%emt 0:02:16]} 32. a5 {[%emt 0:07:09]} Ke6 {[%emt 0:02:12]} 33. Qxc6+ {[%emt 0:10:22]} bxc6 {[%emt 0:00:01]} 34. Kf3 {[%emt 0:00:59]} Kd5 {[%emt 0:01:49]} 35. Ke2 {[%emt 0:02:26]} Kc4 {[%emt 0:02:49]} 36. a6 {[%emt 0:01:48]} Bb8 {[%emt 0:00:07]} 37. Kd2 {[%emt 0:00:40]} Kb4 {[%emt 0:04:06]} 38. Bg5 {[%emt 0:01:15]} e6 {[%emt 0:01:07]} 39. Kc2 {[%emt 0:00:42]} Ka5 {[%emt 0:00:50]} 40. Bf4 {[%emt 0:00:18]} Ba7 {[%emt 0:00:20]} 41. Bd6 {[%emt 0:50:45]} Kxa6 {[%emt 0:53:18]} 42. Kb3 {[%emt 0:00:07]} Kb7 {[%emt 0:01:16]} 0-1

[Event "Caplin Hastings Masters 2023-24"]
[Site "Hastings"]
[Date "2023.12.29"]
[Round "2.35"]
[White "Thompson, Ian D"]
[Black "Flynn, David"]
[Result "1/2-1/2"]
[ECO "A37"]
[WhiteElo "2011"]
[BlackElo "1791"]
[Annotator "NA"]
[PlyCount "83"]
[EventDate "2023.12.18"]
[EventType "swiss"]
[EventCountry "ENG"]
[SourceTitle "playchess.com"]
[Source "ChessBase"]
[SourceQuality "1"]
[TimeControl "40/6000+30:3000+30"]

1. c4 {[%emt 0:00:02]} c5 {[%emt 0:00:57]} 2. Nc3 {[%emt 0:00:11]} g6 {[%emt 0:00:16]} 3. g3 {[%emt 0:00:12]} Bg7 {[%emt 0:00:15]} 4. Bg2 {[%emt 0:00:08]} Nc6 {[%emt 0:00:09]} 5. Nf3 {[%emt 0:00:17]} e5 {[%emt 0:00:30]} 6. O-O {[%emt 0:00:45]} d6 {[%emt 0:00:54]} 7. a3 {[%emt 0:00:54]} a5 {[%emt 0:00:44]} 8. d3 {[%emt 0:02:03]} Nge7 {[%emt 0:02:03]} 9. Rb1 {[%emt 0:01:50]} Rb8 {[%emt 0:04:28]} 10. Bd2 {[%emt 0:03:20]} O-O {[%emt 0:01:01]} 11. Qc1 {[%emt 0:05:54]} Be6 {[%emt 0:09:18]} 12. Re1 {[%emt 0:13:21]} b6 {[%emt 0:04:58]} 13. Ng5 {[%emt 0:04:06]} Bc8 {[%emt 0:08:49]} 14. Nd5 {[%emt 0:21:54]} Nd4 {[%emt 0:13:23]} 15. b4 {[%emt 0:05:04]} axb4 {[%emt 0:06:59]} 16. axb4 {[%emt 0:00:11]} f6 {[%emt 0:02:09]} 17. Nxe7+ {[%emt 0:02:49]} Qxe7 {[%emt 0:00:07]} 18. Ne4 {[%emt 0:02:05]} Bb7 {[%emt 0:05:20]} 19. e3 {[%emt 0:03:08]} Ne6 {[%emt 0:03:44]} 20. bxc5 {[%emt 0:02:47]} bxc5 {[%emt 0:00:12]} 21. Qc2 {[%emt 0:03:14]} f5 {[%emt 0:02:24]} 22. Nc3 {[%emt 0:00:30]} Bxg2 {[%emt 0:00:14]} 23. Kxg2 {[%emt 0:00:21]} Qd7 {[%emt 0:05:15]} 24. Qa4 {[%emt 0:04:26]} Qxa4 {[%emt 0:05:05]} 25. Nxa4 {[%emt 0:00:02]} Ra8 {[%emt 0:02:46]} 26. Nc3 {[%emt 0:02:10]} Rfb8 {[%emt 0:05:29]} 27. Nb5 {[%emt 0:02:58]} Ra6 {[%emt 0:12:50]} 28. Bc3 {[%emt 0:03:14]} Kf8 {[%emt 0:01:58]} 29. Ra1 {[%emt 0:03:26]} Rbb6 {[%emt 0:02:10]} 30. Reb1 {[%emt 0:07:11]} Ke7 {[%emt 0:05:30]} 31. Kf1 {[%emt 0:02:48]} Kd7 {[%emt 0:00:22]} 32. Ke2 {[%emt 0:00:34]} Kc6 {[%emt 0:03:21]} 33. Kd2 {[%emt 0:05:56]} d5 {[%emt 0:01:49]} 34. Ba5 {[%emt 0:02:59]} Rb7 {[%emt 0:01:10]} 35. Bc3 {[%emt 0:03:11]} Rbb6 {[%emt 0:00:19]} 36. cxd5+ {[%emt 0:01:51]} Kxd5 {[%emt 0:00:04]} 37. f4 {[%emt 0:01:22]} Rxa1 {[%emt 0:01:22]} 38. Bxa1 {[%emt 0:00:02]} Kc6 {[%emt 0:00:22]} 39. Na7+ {[%emt 0:01:12]} Kc7 {[%emt 0:00:25]} 40. Nb5+ {[%emt 0:01:03]} Kc6 {[%emt 0:00:08]} 41. Na7+ {[%emt 0:01:19]} Kb7 {[%emt 0:04:32]} 42. Nb5 {[%emt 0:03:10]} 1/2-1/2

[Event "Caplin Hastings Masters 2023-24"]
[Site "Hastings"]
[Date "2023.12.29"]
[Round "2.36"]
[White "Gibbs, Dominic V"]
[Black "ONUOHA, Obioma"]
[Result "1-0"]
[ECO "C44"]
[WhiteElo "1795"]
[BlackElo "1995"]
[Annotator "NA"]
[PlyCount "63"]
[EventDate "2023.12.18"]
[EventType "swiss"]
[EventCountry "ENG"]
[SourceTitle "playchess.com"]
[Source "ChessBase"]
[SourceQuality "1"]
[TimeControl "40/6000+30:3000+30"]

1. e4 {[%emt 0:00:04]} e5 {[%emt 0:00:08]} 2. Nf3 {[%emt 0:00:04]} Nf6 {[%emt 0:00:06]} 3. d3 {[%emt 0:01:13]} Nc6 {[%emt 0:00:19]} 4. Be2 {[%emt 0:01:40]} Bc5 {[%emt 0:00:20]} 5. c3 {[%emt 0:00:13]} O-O {[%emt 0:04:36]} 6. b4 {[%emt 0:04:20]} Bb6 {[%emt 0:00:00]} 7. Nbd2 {[%emt 0:05:55]} d6 {[%emt 0:05:47]} 8. O-O {[%emt 0:03:44]} a5 {[%emt 0:01:20]} 9. b5 {[%emt 0:00:42]} Ne7 {[%emt 0:00:23]} 10. Nc4 {[%emt 0:01:07]} Ba7 {[%emt 0:04:13]} 11. Bg5 {[%emt 0:05:43]} Ng6 {[%emt 0:00:41]} 12. d4 {[%emt 0:16:26]} h6 {[%emt 0:00:47]} 13. Bxf6 {[%emt 0:05:34]} Qxf6 {[%emt 0:00:15]} 14. dxe5 {[%emt 0:00:54]} dxe5 {[%emt 0:01:05]} 15. Nxa5 {[%emt 0:01:09]} Rd8 {[%emt 0:15:12]} 16. Qc2 {[%emt 0:01:47]} Bxf2+ {[%emt 0:07:15]} 17. Rxf2 {[%emt 0:02:01]} Rxa5 {[%emt 0:00:14]} 18. Bc4 {[%emt 0:05:53]} Be6 {[%emt 0:08:30]} 19. Qb3 {[%emt 0:16:42]} Bxc4 {[%emt 0:03:05]} 20. Qxc4 {[%emt 0:00:02]} Qb6 {[%emt 0:04:09]} 21. a4 {[%emt 0:01:14]} Rd6 {[%emt 0:07:09]} 22. Raf1 {[%emt 0:04:33]} Rf6 {[%emt 0:01:02]} 23. h4 {[%emt 0:01:42]} c6 {[%emt 0:04:56]} 24. h5 {[%emt 0:02:16]} Nf4 {[%emt 0:16:06]} 25. Nxe5 {[%emt 0:04:58]} Qe3 {[%emt 0:08:31]} 26. Ng4 {[%emt 0:06:08]} Qb6 {[%emt 0:00:00]} 27. Nxf6+ {[%emt 0:01:57]} gxf6 {[%emt 0:00:00]} 28. Qd4 {[%emt 0:04:28]} Qxd4 {[%emt 0:00:18]} 29. cxd4 {[%emt 0:00:02]} Nxh5 {[%emt 0:00:12]} 30. bxc6 {[%emt 0:00:55]} Rxa4 {[%emt 0:01:03]} 31. c7 {[%emt 0:02:24]} Rc4 {[%emt 0:00:13]} 32. Rf5 {[%emt 0:00:24]} 1-0

[Event "Caplin Hastings Masters 2023-24"]
[Site "Hastings"]
[Date "2023.12.29"]
[Round "2.37"]
[White "Steiners, Emils"]
[Black "Blades, Kit"]
[Result "1/2-1/2"]
[ECO "E49"]
[WhiteElo "1993"]
[BlackElo "1771"]
[Annotator "NA"]
[PlyCount "117"]
[EventDate "2023.12.18"]
[EventType "swiss"]
[EventCountry "ENG"]
[SourceTitle "playchess.com"]
[Source "ChessBase"]
[SourceQuality "1"]
[TimeControl "40/6000+30:3000+30"]

1. d4 {[%emt 0:00:04]} Nf6 {[%emt 0:00:05]} 2. c4 {[%emt 0:00:09]} e6 {[%emt 0:00:03]} 3. Nc3 {[%emt 0:00:11]} Bb4 {[%emt 0:00:06]} 4. e3 {[%emt 0:00:06]} O-O {[%emt 0:00:12]} 5. Bd3 {[%emt 0:01:17]} d5 {[%emt 0:00:15]} 6. a3 {[%emt 0:01:48]} Bxc3+ {[%emt 0:00:19]} 7. bxc3 {[%emt 0:00:09]} c5 {[%emt 0:00:34]} 8. Ne2 {[%emt 0:02:32]} b6 {[%emt 0:04:44]} 9. cxd5 {[%emt 0:04:59]} exd5 {[%emt 0:00:38]} 10. O-O {[%emt 0:00:46]} Re8 {[%emt 0:08:40]} 11. f3 {[%emt 0:11:35]} Ba6 {[%emt 0:03:10]} 12. Bb1 {[%emt 0:12:12]} Nc6 {[%emt 0:14:08]} 13. Re1 {[%emt 0:04:57]} Rc8 {[%emt 0:10:40]} 14. Ng3 {[%emt 0:13:07]} Bc4 {[%emt 0:22:50]} 15. Bb2 {[%emt 0:10:10]} cxd4 {[%emt 0:02:37]} 16. cxd4 {[%emt 0:02:09]} h5 {[%emt 0:05:21]} 17. e4 {[%emt 0:17:51]} h4 {[%emt 0:01:06]} 18. Nf5 {[%emt 0:05:40]} g6 {[%emt 0:10:26]} 19. Ne3 {[%emt 0:06:01]} Na5 {[%emt 0:00:25]} 20. Nxc4 {[%emt 0:03:06]} dxc4 {[%emt 0:01:26]} 21. Bc3 {[%emt 0:01:34]} Nh5 {[%emt 0:01:49]} 22. Ra2 {[%emt 0:05:55]} Qg5 {[%emt 0:02:29]} 23. d5 {[%emt 0:02:00]} Qh6 {[%emt 0:01:37]} 24. Qd2 {[%emt 0:01:46]} Qxd2 {[%emt 0:03:46]} 25. Rxd2 {[%emt 0:00:12]} Nb3 {[%emt 0:00:20]} 26. Rdd1 {[%emt 0:00:40]} Rcd8 {[%emt 0:01:31]} 27. Ba2 {[%emt 0:00:49]} a5 {[%emt 0:02:10]} 28. Bxb3 {[%emt 0:01:59]} cxb3 {[%emt 0:00:07]} 29. a4 {[%emt 0:00:18]} Rc8 {[%emt 0:00:00]} 30. Bd4 {[%emt 0:00:00]} Rc2 {[%emt 0:01:16]} 31. Bxb6 {[%emt 0:01:20]} b2 {[%emt 0:01:44]} 32. d6 {[%emt 0:00:16]} Nf6 {[%emt 0:00:11]} 33. Rb1 {[%emt 0:00:46]} Rec8 {[%emt 0:00:43]} 34. Bc7 {[%emt 0:00:24]} Nd7 {[%emt 0:01:37]} 35. h3 {[%emt 0:00:20]} Ne5 {[%emt 0:00:46]} 36. Red1 {[%emt 0:00:35]} f6 {[%emt 0:02:14]} 37. f4 {[%emt 0:00:31]} Nf7 {[%emt 0:00:49]} 38. Kh2 {[%emt 0:00:26]} Rc1 {[%emt 0:02:06]} 39. Rbxc1 {[%emt 0:00:48]} bxc1=Q {[%emt 0:00:08]} 40. Rxc1 {[%emt 0:00:01]} Nxd6 {[%emt 0:00:11]} 41. Rd1 {[%emt 0:50:53]} Nxe4 {[%emt 0:52:14]} 42. Bxa5 {[%emt 0:00:04]} Rc4 {[%emt 0:00:45]} 43. Ra1 {[%emt 0:00:41]} Nc5 {[%emt 0:01:36]} 44. Bd8 {[%emt 0:00:36]} Nxa4 {[%emt 0:01:04]} 45. Bxf6 {[%emt 0:00:07]} Rxf4 {[%emt 0:00:22]} 46. Bg5 {[%emt 0:00:01]} Re4 {[%emt 0:00:19]} 47. Rf1 {[%emt 0:00:39]} Nc5 {[%emt 0:00:57]} 48. Rf4 {[%emt 0:00:44]} Rxf4 {[%emt 0:00:16]} 49. Bxf4 {[%emt 0:00:02]} Ne6 {[%emt 0:00:16]} 50. Be3 {[%emt 0:00:07]} Kf7 {[%emt 0:00:11]} 51. Kg1 {[%emt 0:00:07]} Kf6 {[%emt 0:00:10]} 52. Kf2 {[%emt 0:00:04]} Kf5 {[%emt 0:00:33]} 53. Kf3 {[%emt 0:00:10]} g5 {[%emt 0:01:02]} 54. g3 {[%emt 0:00:12]} hxg3 {[%emt 0:00:15]} 55. Kxg3 {[%emt 0:00:03]} Nf4 {[%emt 0:00:41]} 56. Bxf4 {[%emt 0:00:17]} gxf4+ {[%emt 0:00:03]} 57. Kf3 {[%emt 0:00:01]} Kg5 {[%emt 0:00:14]} 58. h4+ {[%emt 0:00:02]} Kxh4 {[%emt 0:00:07]} 59. Kxf4 {[%emt 0:00:02]} 1/2-1/2